[Event "Early-Titled-Tuesday-Blitz-October-03-2023"]
[Site "Chess.com"]
[Date "2023.10.03"]
[Round "1"]
[White "tylityli"]
[Black "Kostya0705"]
[Result "0-1"]
[WhiteElo "2336"]
[BlackElo "2637"]
[TimeControl "180+1"]
[EndTime "8:06:20 PDT"]
[Termination "Kostya0705 won on time"]

1. d4 {[%clk 0:02:59]} 1... Nf6 {[%clk 0:02:59.5]} 2. c4 {[%clk 0:02:57.7]} 2...
e6 {[%clk 0:02:59.9]} 3. Nc3 {[%clk 0:02:57.6]} 3... Bb4 {[%clk 0:03:00.3]} 4.
e3 {[%clk 0:02:57.5]} 4... O-O {[%clk 0:03:00.5]} 5. Ne2 {[%clk 0:02:56.5]} 5...
b6 {[%clk 0:02:59.3]} 6. a3 {[%clk 0:02:56.1]} 6... Be7 {[%clk 0:02:58.8]} 7. d5
{[%clk 0:02:55]} 7... d6 {[%clk 0:02:48.9]} 8. g3 {[%clk 0:02:53.8]} 8... e5
{[%clk 0:02:47.1]} 9. Bg2 {[%clk 0:02:53.7]} 9... Nfd7 {[%clk 0:02:43.9]} 10.
O-O {[%clk 0:02:52.4]} 10... f5 {[%clk 0:02:43.5]} 11. f4 {[%clk 0:02:51.3]}
11... e4 {[%clk 0:02:43.1]} 12. Nd4 {[%clk 0:02:50.2]} 12... Nc5 {[%clk
0:02:43]} 13. b4 {[%clk 0:02:40.4]} 13... Nd3 {[%clk 0:02:42.8]} 14. Bd2 {[%clk
0:02:31.6]} 14... Bf6 {[%clk 0:02:42.2]} 15. Ne6 {[%clk 0:02:21.7]} 15... Bxe6
{[%clk 0:02:39.4]} 16. dxe6 {[%clk 0:02:21.4]} 16... c6 {[%clk 0:02:32.7]} 17.
Nxe4 {[%clk 0:02:14.4]} 17... Bxa1 {[%clk 0:02:25.2]} 18. Qxa1 {[%clk
0:02:12.5]} 18... fxe4 {[%clk 0:02:08.4]} 19. Bxe4 {[%clk 0:02:11.7]} 19... Qf6
{[%clk 0:02:04.4]} 20. Qxf6 {[%clk 0:01:59.4]} 20... Rxf6 {[%clk 0:02:05.3]} 21.
Bxd3 {[%clk 0:01:42.4]} 21... Rxe6 {[%clk 0:02:04.7]} 22. e4 {[%clk 0:01:33.1]}
22... Nd7 {[%clk 0:02:02.5]} 23. Bc3 {[%clk 0:01:20.9]} 23... Nf6 {[%clk
0:01:43.9]} 24. e5 {[%clk 0:01:05.8]} 24... dxe5 {[%clk 0:01:40]} 25. Bf5 {[%clk
0:01:02.1]} 25... Re7 {[%clk 0:01:37.4]} 26. fxe5 {[%clk 0:00:56.9]} 26... Nd7
{[%clk 0:01:37.4]} 27. e6 {[%clk 0:00:42.8]} 27... Nf8 {[%clk 0:01:36.8]} 28.
Be5 {[%clk 0:00:16.8]} 28... Nxe6 {[%clk 0:01:33.7]} 29. Bd6 {[%clk 0:00:16.3]}
29... Ree8 {[%clk 0:01:33.8]} 30. Be4 {[%clk 0:00:05.5]} 30... Nd4 {[%clk
0:01:30.1]} 31. Bg2 {[%clk 0:00:03.1]} 31... Rad8 {[%clk 0:01:28.6]} 32. c5
{[%clk 0:00:02.9]} 32... Re3 {[%clk 0:01:13.7]} 33. Rd1 {[%clk 0:00:01.3]} 33...
Nf5 {[%clk 0:01:08.8]} 0-1

[Event "Early-Titled-Tuesday-Blitz-October-03-2023"]
[Site "Chess.com"]
[Date "2023.10.03"]
[Round "1"]
[White "wannabe2700"]
[Black "stepanosinovsky"]
[Result "1-0"]
[WhiteElo "2678"]
[BlackElo "2372"]
[TimeControl "180+1"]
[EndTime "8:06:21 PDT"]
[Termination "wannabe2700 won on time"]

1. b3 {[%clk 0:03:00.9]} 1... Nf6 {[%clk 0:02:58.8]} 2. Bb2 {[%clk 0:03:00.7]}
2... g6 {[%clk 0:02:59.7]} 3. Nf3 {[%clk 0:03:00.6]} 3... Bg7 {[%clk 0:02:59.9]}
4. g3 {[%clk 0:03:01.2]} 4... O-O {[%clk 0:03:00.3]} 5. Bg2 {[%clk 0:03:01.6]}
5... d6 {[%clk 0:03:00.1]} 6. d4 {[%clk 0:03:01.6]} 6... e5 {[%clk 0:02:59.5]}
7. dxe5 {[%clk 0:03:01.7]} 7... Ng4 {[%clk 0:03:00.2]} 8. O-O {[%clk 0:03:01.4]}
8... Nc6 {[%clk 0:02:58.8]} 9. c4 {[%clk 0:03:01]} 9... Ngxe5 {[%clk 0:02:54.1]}
10. Nxe5 {[%clk 0:02:59]} 10... Nxe5 {[%clk 0:02:52]} 11. Nc3 {[%clk 0:02:57.3]}
11... h5 {[%clk 0:02:47.4]} 12. Qd2 {[%clk 0:02:56.1]} 12... h4 {[%clk
0:02:43.7]} 13. Rad1 {[%clk 0:02:55.6]} 13... Bg4 {[%clk 0:01:55.6]} 14. Bxb7
{[%clk 0:02:53.2]} 14... Bh3 {[%clk 0:01:54.3]} 15. Bg2 {[%clk 0:02:49.2]} 15...
Qc8 {[%clk 0:01:52.4]} 16. Nd5 {[%clk 0:02:47.3]} 16... Qg4 {[%clk 0:01:37.2]}
17. f3 {[%clk 0:02:42.8]} 17... Qd7 {[%clk 0:01:35.2]} 18. f4 {[%clk 0:02:25.8]}
18... Bxg2 {[%clk 0:01:22.8]} 19. Kxg2 {[%clk 0:02:26.7]} 19... Ng4 {[%clk
0:01:04]} 20. h3 {[%clk 0:02:23.2]} 20... Nh6 {[%clk 0:01:02.4]} 21. e4 {[%clk
0:01:39.9]} 21... Rae8 {[%clk 0:00:54.2]} 22. f5 {[%clk 0:01:19.9]} 22... Rxe4
{[%clk 0:00:17.8]} 23. f6 {[%clk 0:01:19.6]} 23... Rfe8 {[%clk 0:00:17.9]} 24.
fxg7 {[%clk 0:01:03.9]} 24... Qc6 {[%clk 0:00:10.3]} 25. Qxh6 {[%clk 0:00:53.1]}
25... Re2+ {[%clk 0:00:09.3]} 26. Kg1 {[%clk 0:00:48.7]} 26... Qc5+ {[%clk
0:00:07.5]} 27. Bd4 {[%clk 0:00:48.1]} 1-0

[Event "Early-Titled-Tuesday-Blitz-October-03-2023"]
[Site "Chess.com"]
[Date "2023.10.03"]
[Round "1"]
[White "juancruzarias"]
[Black "Trovita84"]
[Result "1-0"]
[WhiteElo "2629"]
[BlackElo "2322"]
[TimeControl "180+1"]
[EndTime "8:06:21 PDT"]
[Termination "juancruzarias won on time"]

1. d4 {[%clk 0:02:57.9]} 1... Nf6 {[%clk 0:02:57.2]} 2. c3 {[%clk 0:02:58]} 2...
e6 {[%clk 0:02:53.9]} 3. Nd2 {[%clk 0:02:55.4]} 3... d5 {[%clk 0:02:53.6]} 4.
Ngf3 {[%clk 0:02:55.8]} 4... Bd6 {[%clk 0:02:53]} 5. e3 {[%clk 0:02:56]} 5...
O-O {[%clk 0:02:53.2]} 6. Bd3 {[%clk 0:02:56.4]} 6... Nbd7 {[%clk 0:02:53.2]} 7.
O-O {[%clk 0:02:55.9]} 7... e5 {[%clk 0:02:53.1]} 8. e4 {[%clk 0:02:56.5]} 8...
dxe4 {[%clk 0:02:51.4]} 9. Nxe4 {[%clk 0:02:56.4]} 9... Nxe4 {[%clk 0:02:49.3]}
10. Bxe4 {[%clk 0:02:57.3]} 10... exd4 {[%clk 0:02:44.2]} 11. Qxd4 {[%clk
0:02:56.3]} 11... h6 {[%clk 0:02:39.4]} 12. h3 {[%clk 0:02:46.3]} 12... Nf6
{[%clk 0:02:39]} 13. Bc2 {[%clk 0:02:46]} 13... Be6 {[%clk 0:02:30.8]} 14. Rd1
{[%clk 0:02:27.5]} 14... Qe7 {[%clk 0:02:28.6]} 15. Qh4 {[%clk 0:02:22.9]} 15...
Nd5 {[%clk 0:01:06.5]} 16. Qe4 {[%clk 0:02:07.3]} 16... Nf6 {[%clk 0:01:00.3]}
17. Qh4 {[%clk 0:02:06.4]} 17... Nd5 {[%clk 0:00:59.6]} 18. Qe4 {[%clk 0:02:06]}
18... Nf6 {[%clk 0:00:59.2]} 19. Qa4 {[%clk 0:02:02.6]} 19... c6 {[%clk
0:00:33.2]} 20. Qh4 {[%clk 0:01:50.6]} 20... Nd5 {[%clk 0:00:28.9]} 21. Qe4
{[%clk 0:01:47.9]} 21... Nf6 {[%clk 0:00:28.7]} 22. Qe2 {[%clk 0:01:47.5]} 22...
Qc7 {[%clk 0:00:27.2]} 23. Be3 {[%clk 0:01:42.2]} 23... Rfe8 {[%clk 0:00:27.1]}
24. Qd2 {[%clk 0:01:39.2]} 24... Bf8 {[%clk 0:00:23]} 25. Nd4 {[%clk 0:01:37.5]}
25... Bd5 {[%clk 0:00:22.2]} 26. Nf5 {[%clk 0:01:33.6]} 26... Ne4 {[%clk
0:00:19.6]} 27. Qe2 {[%clk 0:01:30.6]} 27... Rad8 {[%clk 0:00:12.1]} 28. c4
{[%clk 0:01:30.1]} 28... g6 {[%clk 0:00:06.3]} 29. Nh4 {[%clk 0:01:23.6]} 29...
g5 {[%clk 0:00:02.3]} 30. Nf5 {[%clk 0:01:22.1]} 30... Qe5 {[%clk 0:00:02.6]}
31. Nxh6+ {[%clk 0:01:13.4]} 31... Bxh6 {[%clk 0:00:02]} 32. cxd5 {[%clk
0:01:13.8]} 32... cxd5 {[%clk 0:00:02.3]} 33. Qh5 {[%clk 0:01:09.7]} 1-0

[Event "Early-Titled-Tuesday-Blitz-October-03-2023"]
[Site "Chess.com"]
[Date "2023.10.03"]
[Round "1"]
[White "Man-Chuk"]
[Black "Tsyhanchuk_Stanislav"]
[Result "1-0"]
[WhiteElo "2811"]
[BlackElo "2456"]
[TimeControl "180+1"]
[EndTime "8:06:23 PDT"]
[Termination "Man-Chuk won by resignation"]

1. d4 {[%clk 0:02:51.1]} 1... Nf6 {[%clk 0:02:59.6]} 2. c4 {[%clk 0:02:51.1]}
2... e6 {[%clk 0:02:58.8]} 3. Nf3 {[%clk 0:02:51.2]} 3... d5 {[%clk 0:02:58]} 4.
Nc3 {[%clk 0:02:51.1]} 4... a6 {[%clk 0:02:40.2]} 5. cxd5 {[%clk 0:02:49.9]}
5... exd5 {[%clk 0:02:39.8]} 6. Bg5 {[%clk 0:02:50.2]} 6... Be7 {[%clk
0:02:35.2]} 7. e3 {[%clk 0:02:46.9]} 7... O-O {[%clk 0:02:33.1]} 8. Bd3 {[%clk
0:02:46.6]} 8... Nbd7 {[%clk 0:02:33.3]} 9. Qc2 {[%clk 0:02:38.1]} 9... h6
{[%clk 0:02:31.9]} 10. Bf4 {[%clk 0:02:38.1]} 10... c5 {[%clk 0:02:30.5]} 11.
dxc5 {[%clk 0:02:32.6]} 11... Nxc5 {[%clk 0:02:30.8]} 12. O-O {[%clk 0:02:27.4]}
12... b5 {[%clk 0:02:21]} 13. Nd4 {[%clk 0:02:16.7]} 13... Bd6 {[%clk
0:02:03.4]} 14. Nce2 {[%clk 0:01:31.8]} 14... Nfe4 {[%clk 0:01:30.4]} 15. Rac1
{[%clk 0:01:16.3]} 15... Bb7 {[%clk 0:01:11.2]} 16. Bxe4 {[%clk 0:01:13.9]}
16... Nxe4 {[%clk 0:01:08.3]} 17. Bxd6 {[%clk 0:01:11.4]} 17... Qxd6 {[%clk
0:01:07.2]} 18. Qc7 {[%clk 0:01:10.1]} 18... Qxc7 {[%clk 0:00:43.1]} 19. Rxc7
{[%clk 0:01:09.6]} 19... Rab8 {[%clk 0:00:42.1]} 20. Rfc1 {[%clk 0:00:54.5]}
20... Rfc8 {[%clk 0:00:40.3]} 21. Nf5 {[%clk 0:00:50]} 21... Kf8 {[%clk
0:00:32.2]} 22. f3 {[%clk 0:00:49.8]} 22... Nd2 {[%clk 0:00:12.3]} 23. b3 {[%clk
0:00:43.1]} 23... Rxc7 {[%clk 0:00:09.4]} 24. Rxc7 {[%clk 0:00:42.9]} 24... Ba8
{[%clk 0:00:09.5]} 25. Nd6 {[%clk 0:00:40.2]} 25... f6 {[%clk 0:00:09.1]} 26.
Nd4 {[%clk 0:00:40.5]} 26... Rd8 {[%clk 0:00:08.7]} 27. Ne6+ {[%clk 0:00:40.4]}
1-0

[Event "Early-Titled-Tuesday-Blitz-October-03-2023"]
[Site "Chess.com"]
[Date "2023.10.03"]
[Round "1"]
[White "mapleaff"]
[Black "sonicdravise"]
[Result "0-1"]
[WhiteElo "2362"]
[BlackElo "2662"]
[TimeControl "180+1"]
[EndTime "8:06:25 PDT"]
[Termination "sonicdravise won on time"]

1. e4 {[%clk 0:02:58.8]} 1... g6 {[%clk 0:03:00.4]} 2. d4 {[%clk 0:02:54.7]}
2... Bg7 {[%clk 0:03:00.8]} 3. f4 {[%clk 0:02:53.6]} 3... d6 {[%clk 0:02:58]} 4.
Nf3 {[%clk 0:02:53.2]} 4... a6 {[%clk 0:02:57.1]} 5. Bd3 {[%clk 0:02:49.4]} 5...
Nd7 {[%clk 0:02:49.5]} 6. O-O {[%clk 0:02:47.7]} 6... Ngf6 {[%clk 0:02:41.2]} 7.
e5 {[%clk 0:02:42.8]} 7... Nd5 {[%clk 0:02:40.9]} 8. c4 {[%clk 0:02:40]} 8...
Nb4 {[%clk 0:02:29.7]} 9. Be2 {[%clk 0:02:11.7]} 9... dxe5 {[%clk 0:02:26.8]}
10. fxe5 {[%clk 0:02:08.7]} 10... O-O {[%clk 0:02:26.8]} 11. Nc3 {[%clk
0:02:04.8]} 11... c5 {[%clk 0:02:12.6]} 12. Be3 {[%clk 0:01:57.3]} 12... cxd4
{[%clk 0:02:09.8]} 13. Bxd4 {[%clk 0:01:49.7]} 13... Nc6 {[%clk 0:02:09.8]} 14.
e6 {[%clk 0:01:47.7]} 14... Nxd4 {[%clk 0:02:06]} 15. Nxd4 {[%clk 0:01:46.4]}
15... Qb6 {[%clk 0:01:57.8]} 16. exd7 {[%clk 0:01:36.8]} 16... Qxd4+ {[%clk
0:01:55.7]} 17. Kh1 {[%clk 0:01:31.4]} 17... Qxd7 {[%clk 0:01:47.9]} 18. Qc2
{[%clk 0:01:23.9]} 18... e6 {[%clk 0:01:40.4]} 19. Bf3 {[%clk 0:01:16]} 19...
Qc7 {[%clk 0:01:37]} 20. b3 {[%clk 0:01:06.7]} 20... Bd7 {[%clk 0:01:35.8]} 21.
Rad1 {[%clk 0:01:05.8]} 21... Rac8 {[%clk 0:01:33.2]} 22. Ne4 {[%clk 0:00:54.9]}
22... Bc6 {[%clk 0:01:28.9]} 23. c5 {[%clk 0:00:34.5]} 23... Rfd8 {[%clk
0:01:05.9]} 24. Nd6 {[%clk 0:00:33.9]} 24... Bxf3 {[%clk 0:01:03.3]} 25. gxf3
{[%clk 0:00:04.5]} 25... Rxd6 {[%clk 0:01:01.3]} 26. Rxd6 {[%clk 0:00:04.8]}
26... Qxd6 {[%clk 0:01:01.3]} 27. cxd6 {[%clk 0:00:04.2]} 27... Rxc2 {[%clk
0:01:00.8]} 28. Rd1 {[%clk 0:00:02.1]} 28... Rc8 {[%clk 0:00:59.7]} 29. d7
{[%clk 0:00:01.9]} 29... Rd8 {[%clk 0:01:00.3]} 30. Kg2 {[%clk 0:00:02.2]} 30...
Kf8 {[%clk 0:01:00.8]} 0-1

[Event "Early-Titled-Tuesday-Blitz-October-03-2023"]
[Site "Chess.com"]
[Date "2023.10.03"]
[Round "1"]
[White "Vaathi_Coming"]
[Black "Schattman"]
[Result "1-0"]
[WhiteElo "2860"]
[BlackElo "2480"]
[TimeControl "180+1"]
[EndTime "8:06:27 PDT"]
[Termination "Vaathi_Coming won on time"]

1. c4 {[%clk 0:02:58.5]} 1... g6 {[%clk 0:02:59]} 2. Nc3 {[%clk 0:02:57.6]} 2...
c5 {[%clk 0:02:57.6]} 3. g3 {[%clk 0:02:56.2]} 3... Nc6 {[%clk 0:02:57.3]} 4.
Bg2 {[%clk 0:02:56.9]} 4... Bg7 {[%clk 0:02:57.6]} 5. e3 {[%clk 0:02:57.2]} 5...
e6 {[%clk 0:02:50.7]} 6. Nge2 {[%clk 0:02:54.7]} 6... Nge7 {[%clk 0:02:50.4]} 7.
d4 {[%clk 0:02:54.7]} 7... cxd4 {[%clk 0:02:50.3]} 8. exd4 {[%clk 0:02:54.3]}
8... d5 {[%clk 0:02:49.8]} 9. cxd5 {[%clk 0:02:50.7]} 9... Nxd5 {[%clk
0:02:48.7]} 10. h4 {[%clk 0:02:42.9]} 10... h5 {[%clk 0:02:42.1]} 11. Bg5 {[%clk
0:02:41.5]} 11... Qb6 {[%clk 0:02:31.3]} 12. O-O {[%clk 0:02:39.5]} 12... O-O
{[%clk 0:02:27.6]} 13. Na4 {[%clk 0:01:43.7]} 13... Qa5 {[%clk 0:02:03]} 14. a3
{[%clk 0:01:43.3]} 14... b6 {[%clk 0:01:29.9]} 15. b4 {[%clk 0:01:40.5]} 15...
Qb5 {[%clk 0:01:14.8]} 16. Nac3 {[%clk 0:01:39]} 16... Nxc3 {[%clk 0:01:03.9]}
17. Nxc3 {[%clk 0:01:39.9]} 17... Qc4 {[%clk 0:01:04.2]} 18. Rc1 {[%clk
0:01:21.4]} 18... Bb7 {[%clk 0:00:56]} 19. Ne4 {[%clk 0:01:10.3]} 19... Qxd4
{[%clk 0:00:38.3]} 20. Nd6 {[%clk 0:01:09.5]} 20... Ba6 {[%clk 0:00:19.1]} 21.
b5 {[%clk 0:01:09.4]} 21... Qxd1 {[%clk 0:00:09.3]} 22. Rcxd1 {[%clk 0:00:59.1]}
22... Nd4 {[%clk 0:00:07.4]} 23. bxa6 {[%clk 0:00:49.7]} 23... Rab8 {[%clk
0:00:06.1]} 24. Be7 {[%clk 0:00:48.3]} 24... Nf5 {[%clk 0:00:02.4]} 25. Nxf5
{[%clk 0:00:47.6]} 25... gxf5 {[%clk 0:00:02.8]} 26. Bxf8 {[%clk 0:00:48.2]}
26... Bxf8 {[%clk 0:00:03.1]} 27. Rd7 {[%clk 0:00:48.6]} 27... Bc5 {[%clk
0:00:03.3]} 28. Rxa7 {[%clk 0:00:48.9]} 28... Rd8 {[%clk 0:00:03.5]} 29. Ra8
{[%clk 0:00:49.7]} 1-0

[Event "Early-Titled-Tuesday-Blitz-October-03-2023"]
[Site "Chess.com"]
[Date "2023.10.03"]
[Round "1"]
[White "GiorgianBarbosa"]
[Black "Aradhya2000"]
[Result "0-1"]
[WhiteElo "2387"]
[BlackElo "2692"]
[TimeControl "180+1"]
[EndTime "8:06:28 PDT"]
[Termination "Aradhya2000 won by checkmate"]

1. c4 {[%clk 0:03:00]} 1... e6 {[%clk 0:02:59.1]} 2. g3 {[%clk 0:03:00.9]} 2...
d5 {[%clk 0:02:57.5]} 3. Bg2 {[%clk 0:03:01.1]} 3... Nf6 {[%clk 0:02:54.2]} 4.
Nf3 {[%clk 0:03:02]} 4... d4 {[%clk 0:02:54.6]} 5. O-O {[%clk 0:03:01.2]} 5...
c5 {[%clk 0:02:54.1]} 6. e3 {[%clk 0:02:58.9]} 6... Nc6 {[%clk 0:02:54.4]} 7.
exd4 {[%clk 0:02:58.6]} 7... cxd4 {[%clk 0:02:55.3]} 8. d3 {[%clk 0:02:58.8]}
8... Be7 {[%clk 0:02:54.8]} 9. Bf4 {[%clk 0:02:58.6]} 9... O-O {[%clk
0:02:54.6]} 10. Nbd2 {[%clk 0:02:57.5]} 10... Nd7 {[%clk 0:02:54.1]} 11. Re1
{[%clk 0:02:45.3]} 11... a5 {[%clk 0:02:48.9]} 12. Ne4 {[%clk 0:02:38.5]} 12...
e5 {[%clk 0:02:48]} 13. Bg5 {[%clk 0:02:33.9]} 13... f6 {[%clk 0:02:15.5]} 14.
Bc1 {[%clk 0:02:25.7]} 14... f5 {[%clk 0:02:13.5]} 15. Ned2 {[%clk 0:02:17]}
15... Bf6 {[%clk 0:02:13.2]} 16. h4 {[%clk 0:01:55.9]} 16... a4 {[%clk
0:02:11.1]} 17. Rb1 {[%clk 0:01:54.1]} 17... Nc5 {[%clk 0:02:09.8]} 18. Bf1
{[%clk 0:01:48.3]} 18... Re8 {[%clk 0:01:52.7]} 19. b4 {[%clk 0:01:41.6]} 19...
axb3 {[%clk 0:01:51.2]} 20. axb3 {[%clk 0:01:42.5]} 20... e4 {[%clk 0:01:50.5]}
21. dxe4 {[%clk 0:01:41.6]} 21... Nxe4 {[%clk 0:01:50.5]} 22. Nxe4 {[%clk
0:01:37.7]} 22... fxe4 {[%clk 0:01:51.4]} 23. Ng5 {[%clk 0:01:37.9]} 23... Bf5
{[%clk 0:01:49.8]} 24. Bg2 {[%clk 0:01:34.8]} 24... Bxg5 {[%clk 0:01:46.5]} 25.
Bxg5 {[%clk 0:01:34.1]} 25... Qd7 {[%clk 0:01:47.1]} 26. b4 {[%clk 0:01:26.3]}
26... e3 {[%clk 0:01:42.3]} 27. fxe3 {[%clk 0:01:21.5]} 27... Bxb1 {[%clk
0:01:42]} 28. Qxb1 {[%clk 0:01:13.6]} 28... Kh8 {[%clk 0:01:41]} 29. b5 {[%clk
0:00:52.7]} 29... Ne5 {[%clk 0:01:40.5]} 30. Bd5 {[%clk 0:00:47.7]} 30... Qg4
{[%clk 0:01:09.5]} 31. Bf4 {[%clk 0:00:30.5]} 31... Ng6 {[%clk 0:01:02]} 32.
Bxb7 {[%clk 0:00:22.9]} 32... Nxf4 {[%clk 0:00:58.3]} 33. exf4 {[%clk
0:00:23.3]} 33... Qxg3+ {[%clk 0:00:58.4]} 34. Bg2 {[%clk 0:00:23.7]} 34...
Rxe1+ {[%clk 0:00:57]} 35. Qxe1 {[%clk 0:00:23.8]} 35... Qxe1+ {[%clk
0:00:57.9]} 36. Kh2 {[%clk 0:00:24.3]} 36... Qxh4+ {[%clk 0:00:57.9]} 37. Bh3
{[%clk 0:00:23.2]} 37... Ra2+ {[%clk 0:00:58]} 38. Kg1 {[%clk 0:00:24.1]} 38...
Qf2+ {[%clk 0:00:57.5]} 39. Kh1 {[%clk 0:00:23.7]} 39... Qh2# {[%clk 0:00:58.4]}
0-1

[Event "Early-Titled-Tuesday-Blitz-October-03-2023"]
[Site "Chess.com"]
[Date "2023.10.03"]
[Round "1"]
[White "LangesNasenhaar"]
[Black "scarabee43"]
[Result "0-1"]
[WhiteElo "2448"]
[BlackElo "2786"]
[TimeControl "180+1"]
[EndTime "8:06:29 PDT"]
[Termination "scarabee43 won by resignation"]

1. d4 {[%clk 0:03:00.9]} 1... Nf6 {[%clk 0:02:59.7]} 2. Nc3 {[%clk 0:03:01.5]}
2... d5 {[%clk 0:02:59.4]} 3. Bf4 {[%clk 0:03:01.9]} 3... c6 {[%clk 0:02:59.4]}
4. e3 {[%clk 0:03:01.2]} 4... Bf5 {[%clk 0:02:59.5]} 5. Nf3 {[%clk 0:03:01.6]}
5... e6 {[%clk 0:02:59.3]} 6. Ne5 {[%clk 0:03:02.1]} 6... Nbd7 {[%clk
0:02:59.2]} 7. g4 {[%clk 0:03:02.5]} 7... Bg6 {[%clk 0:02:56.8]} 8. h4 {[%clk
0:03:02.8]} 8... h5 {[%clk 0:02:43]} 9. Nxg6 {[%clk 0:03:01.9]} 9... fxg6 {[%clk
0:02:42.8]} 10. g5 {[%clk 0:03:02.6]} 10... Nh7 {[%clk 0:02:29.7]} 11. Bh3
{[%clk 0:03:01.9]} 11... Qe7 {[%clk 0:02:28.7]} 12. Qd3 {[%clk 0:02:52.6]} 12...
Qf7 {[%clk 0:02:28.2]} 13. O-O-O {[%clk 0:02:48.7]} 13... Be7 {[%clk 0:02:25.3]}
14. Bg3 {[%clk 0:02:36.7]} 14... O-O {[%clk 0:02:20.4]} 15. e4 {[%clk
0:02:32.8]} 15... Bb4 {[%clk 0:02:10.4]} 16. a3 {[%clk 0:02:12.7]} 16... Bxc3
{[%clk 0:02:09.2]} 17. Qxc3 {[%clk 0:02:10.3]} 17... Rfe8 {[%clk 0:01:54.4]} 18.
Rhe1 {[%clk 0:02:09.3]} 18... Nhf8 {[%clk 0:01:54.7]} 19. Re2 {[%clk 0:01:46]}
19... Nb6 {[%clk 0:01:41.4]} 20. b3 {[%clk 0:01:43.3]} 20... a5 {[%clk
0:01:37.7]} 21. a4 {[%clk 0:01:41.9]} 21... dxe4 {[%clk 0:01:35.2]} 22. Rxe4
{[%clk 0:01:40.2]} 22... Nd5 {[%clk 0:01:35.9]} 23. Qd3 {[%clk 0:01:26.6]} 23...
b5 {[%clk 0:01:33.3]} 24. axb5 {[%clk 0:01:17.5]} 24... a4 {[%clk 0:01:30]} 25.
c4 {[%clk 0:01:02.8]} 25... Nb4 {[%clk 0:01:19.5]} 26. Qd2 {[%clk 0:01:02.3]}
26... axb3 {[%clk 0:01:19.9]} 27. Qxb4 {[%clk 0:00:53.5]} 27... Ra1+ {[%clk
0:01:00.2]} 28. Kd2 {[%clk 0:00:53.4]} 28... Rxd1+ {[%clk 0:01:00.1]} 29. Kxd1
{[%clk 0:00:52.6]} 29... Qf3+ {[%clk 0:00:59.4]} 30. Re2 {[%clk 0:00:44]} 30...
Ra8 {[%clk 0:00:59.2]} 31. Bf1 {[%clk 0:00:16.3]} 31... Qd3+ {[%clk 0:00:53.4]}
32. Kc1 {[%clk 0:00:09.9]} 32... Ra1+ {[%clk 0:00:52.8]} 33. Kb2 {[%clk
0:00:10.2]} 33... Ra2+ {[%clk 0:00:48.4]} 34. Kc1 {[%clk 0:00:09.1]} 34... Rc2+
{[%clk 0:00:48.5]} 0-1

[Event "Early-Titled-Tuesday-Blitz-October-03-2023"]
[Site "Chess.com"]
[Date "2023.10.03"]
[Round "1"]
[White "Korchmar_Vasiliy"]
[Black "wild3000"]
[Result "1-0"]
[WhiteElo "2693"]
[BlackElo "2388"]
[TimeControl "180+1"]
[EndTime "8:06:29 PDT"]
[Termination "Korchmar_Vasiliy won by resignation"]

1. e4 {[%clk 0:02:58]} 1... e5 {[%clk 0:02:59]} 2. Nf3 {[%clk 0:02:57.5]} 2...
Nc6 {[%clk 0:02:58.9]} 3. Bc4 {[%clk 0:02:57.6]} 3... Be7 {[%clk 0:02:58.2]} 4.
O-O {[%clk 0:02:52.9]} 4... d6 {[%clk 0:02:56.9]} 5. Nc3 {[%clk 0:02:39.8]} 5...
Nf6 {[%clk 0:02:51.4]} 6. a4 {[%clk 0:02:35.8]} 6... Bg4 {[%clk 0:02:50]} 7. h3
{[%clk 0:02:32.1]} 7... Bh5 {[%clk 0:02:48.3]} 8. g4 {[%clk 0:02:15.4]} 8... Bg6
{[%clk 0:02:35.4]} 9. d3 {[%clk 0:02:15.4]} 9... h5 {[%clk 0:02:35]} 10. g5
{[%clk 0:02:14]} 10... Nd7 {[%clk 0:02:16.2]} 11. h4 {[%clk 0:02:13]} 11... O-O
{[%clk 0:01:59]} 12. Ne2 {[%clk 0:02:07.6]} 12... Kh8 {[%clk 0:01:40.5]} 13. Ng3
{[%clk 0:02:06.8]} 13... f6 {[%clk 0:01:06.6]} 14. Kg2 {[%clk 0:02:04.6]} 14...
Nb6 {[%clk 0:01:01.4]} 15. Bb3 {[%clk 0:02:02.8]} 15... a5 {[%clk 0:00:56.3]}
16. gxf6 {[%clk 0:01:57.6]} 16... gxf6 {[%clk 0:00:51.4]} 17. Bh6 {[%clk
0:01:55.4]} 17... Rg8 {[%clk 0:00:43.1]} 18. Bxg8 {[%clk 0:01:49.9]} 18... Qxg8
{[%clk 0:00:43]} 19. Kh2 {[%clk 0:01:50.5]} 19... Kh7 {[%clk 0:00:41.8]} 20. Qd2
{[%clk 0:01:49.3]} 20... Qe6 {[%clk 0:00:36.1]} 21. Rg1 {[%clk 0:01:41.6]} 21...
Rg8 {[%clk 0:00:35.5]} 22. Be3 {[%clk 0:01:25.9]} 22... Nd7 {[%clk 0:00:33.6]}
23. d4 {[%clk 0:01:15.1]} 23... exd4 {[%clk 0:00:31.7]} 24. Nxd4 {[%clk
0:01:15.4]} 24... Nxd4 {[%clk 0:00:31.7]} 25. Bxd4 {[%clk 0:01:15.5]} 25... Ne5
{[%clk 0:00:30.3]} 26. Bxe5 {[%clk 0:01:11.7]} 26... fxe5 {[%clk 0:00:30.2]} 27.
Qe2 {[%clk 0:01:01.6]} 27... Bxh4 {[%clk 0:00:26.4]} 28. Nf5 {[%clk 0:00:59]}
28... Qf7 {[%clk 0:00:20.7]} 29. Nxh4 {[%clk 0:00:55.4]} 29... Qf4+ {[%clk
0:00:18.9]} 30. Kh3 {[%clk 0:00:52.5]} 30... Bxe4 {[%clk 0:00:07.3]} 31. Qxh5+
{[%clk 0:00:51.4]} 31... Qh6 {[%clk 0:00:07.2]} 32. Qxh6+ {[%clk 0:00:51.9]}
32... Kxh6 {[%clk 0:00:07.8]} 33. Rxg8 {[%clk 0:00:52.8]} 1-0